bitfinex-derivatives/quotes_ETHF0:USTF0_20250411
["timestamp","ask_amount","ask_price","bid_price","bid_amount"]
[1744381181890,7.46300411,1558.8,1558.0,21.8683]
[1744381182094,1.28381,1558.6,1558.5,3.2078]
[1744381182283,1.2839,1558.5,1558.4,4.9957]
[1744381182595,1.28406,1558.3,1558.2,3.2078]
[1744381183390,1.28414,1558.2,1558.1,5.00530092]
[1744381183597,1.28414,1558.2,1558.1,0.00960092]
[1744381185094,9.49194,1558.2,1558.1,0.00960092]
[1744381185400,1.28456,1557.7,1557.6,3.2078]
[1744381185895,1.28445,1557.9,1557.5,1.2847]
[1744381186098,1.2845,1557.8,1557.4,9.32732]
[1744381186398,1.2845,1557.8,1557.4,9.32734]
[1744381186598,1.28456,1557.7,1557.4,9.32735]
[1744381187096,1.28456,1557.7,1557.4,8.0426]
[1744381187297,1.28472,1557.6,1557.4,3.2078]
[1744381187497,6.41899,1557.8,1557.4,3.2078]
[1744381187698,1.28469,1557.6,1557.4,3.2078]
[1744381188085,15.0109,1557.7,1557.3,14.9804285]
[1744381188290,1.28466,1557.6,1557.3,16.2652885]
[1744381188493,9.7866,1557.6,1557.4,4.4926]
[1744381188687,11.07125,1557.6,1557.4,3.2078]
[1744381188897,11.07125,1557.6,1557.3,16.2653085]
[1744381189092,13.9168,1557.6,1557.3,14.9804285]
[1744381189300,1.2848,1557.5,1557.3,9.9397285]
[1744381189504,1.2848,1557.4,1557.3,9.92667771]
[1744381189802,4.1302,1557.6,1557.3,9.92667771]
[1744381189995,4.11714921,1557.6,1557.3,11.21153771]
[1744381190193,4.11714921,1557.6,1557.2,3.2078]
[1744381190393,1.28465,1557.6,1557.2,4.47966921]
[1744381190594,16.36601092,1557.7,1557.3,4.49267]
[1744381190790,15.06835013,1557.7,1557.5,3.2078]
[1744381190998,1.29419092,1557.7,1557.5,3.2078]
[1744381191196,0.00960092,1557.7,1557.5,3.2078]
[1744381191601,1.29416092,1557.7,1557.5,3.2078]
[1744381191801,1.29416092,1557.7,1557.5,8.2163]
[1744381192004,1.28464,1557.6,1557.5,8.2163]
[1744381192202,1.29422092,1557.7,1557.5,8.2163]
[1744381192503,1.28464,1557.6,1557.5,8.2163]
[1744381192702,1.29422092,1557.7,1557.5,8.2163]
[1744381192902,1.28464,1557.6,1557.5,8.2163]
[1744381193103,1.29421092,1557.7,1557.5,8.2163]
[1744381193303,1.28464,1557.6,1557.5,8.2163]
[1744381194805,1.29421092,1557.7,1557.5,9.501]
[1744381195103,3.21126,1557.8,1557.5,8.2163]
[1744381195297,1.28442,1557.9,1557.7,3.2078]
[1744381195498,1.28439,1557.9,1557.8,5.2213]
[1744381197002,1.28439,1557.9,1557.8,15.087]
[1744381197399,1.28447,1557.8,1557.7,0.00960092]
[1744381197599,10.88947,1557.8,1557.7,0.00960092]
[1744381197794,15.88947,1557.8,1557.7,0.00960092]
[1744381198197,10.88947,1557.8,1557.7,0.00960092]
[1744381198397,15.88947,1557.8,1557.7,0.00960092]
[1744381200103,10.88947,1557.8,1557.7,0.00960092]
[1744381200909,10.49900092,1558.0,1557.7,3.21740092]
[1744381201203,1.28439,1557.9,1557.8,9.7059]
[1744381201515,1.28447,1557.8,1557.7,0.00960092]
[1744381201705,6.50207,1557.8,1557.7,0.00960092]
[1744381202006,21.44887,1557.8,1557.7,0.00960092]
[1744381202410,1.28447,1557.8,1557.7,0.00960092]
[1744381202609,0.00960092,1558.0,1557.7,0.00960092]
[1744381202806,1.28447,1557.8,1557.7,0.00960092]
[1744381203008,1.28447,1557.8,1557.7,9.71550092]
[1744381203216,1.28447,1557.8,1557.7,12.92330092]
[1744381204204,4.49227,1557.8,1557.7,0.00960092]
[1744381204516,1.28447,1557.8,1557.7,0.00960092]
[1744381204809,6.28447,1557.8,1557.7,0.00960092]
[1744381205015,9.49227,1557.8,1557.7,0.00960092]
[1744381205314,23.59951921,1557.8,1557.7,9.2e-07]
[1744381205509,1.28489,1557.3,1557.2,13.68581]
[1744381205709,1.28532,1556.8,1556.6,3.2078]
[1744381205908,1.28528,1556.9,1556.6,9.43795]
[1744381206102,1.28518,1557.0,1556.8,3.2078]
[1744381206307,1.28522,1556.9,1556.6,9.43791]
[1744381206816,1.28538,1556.7,1556.6,3.2078]
[1744381207107,0.00963235,1556.9,1556.6,3.2078]
[1744381207310,3.22281235,1556.9,1556.5,0.10996607]
[1744381207509,0.00963235,1556.9,1556.6,3.2078]
[1744381207906,0.00963235,1556.9,1556.7,4.837]
[1744381208117,1.29485235,1556.9,1556.8,3.2078]
[1744381208317,0.00963235,1556.9,1556.8,3.2078]
[1744381208516,0.00963235,1556.9,1556.8,8.2078]
[1744381208821,1.29485235,1556.9,1556.8,13.1346]
[1744381209110,0.00963235,1556.9,1556.8,17.9573]
[1744381209315,1.29485235,1556.9,1556.8,17.9573]
[1744381209712,1.29485235,1556.9,1556.8,9.8227]
[1744381209910,1.28546,1556.6,1556.5,3.31776607]
[1744381210708,1.28546,1556.6,1556.5,8.31776607]
[1744381210908,3.21151,1557.7,1556.7,3.2078]
[1744381211211,1.28472,1557.5,1557.4,3.2078]
[1744381211410,1.27166921,1557.5,1557.4,3.2078]
[1744381211610,3.22148235,1557.5,1557.1,12.8952]
[1744381211912,1.28489,1557.3,1557.2,9.67434921]
[1744381212113,1.28489,1557.3,1557.2,14.88344921]
[1744381212317,1.28485,1557.4,1557.2,14.88344921]
[1744381212715,1.28485,1557.4,1557.3,3.2078]
[1744381212916,0.00963235,1557.5,1557.3,8.2078]
[1744381213217,0.00963235,1557.5,1557.4,6.3779]
[1744381213417,7.46300411,1557.8,1557.5,0.00341844]
[1744381213618,1.28464,1557.6,1557.5,0.00341844]
[1744381213915,1.28456,1557.7,1557.6,0.00341844]
[1744381214315,1.28456,1557.7,1557.4,8.3009]
[1744381214316,0.00963235,1557.7,1557.4,8.3009]
[1744381214526,1.28130156,1557.5,1557.4,8.3009]
[1744381214818,1.28130156,1557.5,1557.4,5.0931]
[1744381215318,1.28130156,1557.5,1557.4,8.3009]
[1744381215619,1.28466,1557.6,1557.4,13.3009]
[1744381215823,0.00963235,1557.8,1557.5,10.1693]
[1744381216013,0.00963235,1557.8,1557.7,3.2078]
[1744381216525,0.00963235,1557.8,1557.7,17.9439]
[1744381216721,1.29410235,1557.8,1557.7,12.9439]
[1744381217021,0.00963235,1557.8,1557.7,19.22846]
[1744381217217,0.00963235,1557.8,1557.7,17.9439]
[1744381217417,1.29410235,1557.8,1557.7,12.9439]
[1744381217616,0.00963235,1557.8,1557.7,12.9439]
[1744381217815,0.00963235,1557.8,1557.7,17.9439]
[1744381218023,0.00963235,1557.8,1557.7,14.22846]
[1744381218413,0.00963235,1557.8,1557.7,19.70116512]
[1744381218713,3.21018,1558.3,1557.8,1.28442]
[1744381218921,1.28414,1558.2,1558.1,3.2078]
[1744381219321,1.28414,1558.2,1558.1,8.4572]
[1744381219818,3.23867,1558.4,1558.1,9.74141]
[1744381219819,1.29375235,1558.3,1558.1,9.74141]
[1744381220017,1.29375235,1558.3,1558.2,9.5748]
[1744381220223,1.3033847,1558.3,1558.2,9.5748]
[1744381222220,1.28414,1558.2,1558.1,3.2078]
[1744381222422,1.28414,1558.2,1558.0,10.10203235]
[1744381222423,1.28423,1558.1,1558.0,10.10203235]
[1744381222617,0.00963235,1558.2,1558.0,10.10203235]
[1744381222925,1.28423,1558.1,1558.0,10.10203235]
[1744381223328,1.29386235,1558.1,1558.0,10.10203235]
[1744381223527,1.29386235,1558.1,1558.0,0.00963235]
[1744381223929,1.29386235,1558.1,1558.0,10.10203235]
[1744381225427,0.00963235,1558.1,1558.0,10.10203235]
[1744381225725,11.16731,1558.2,1558.0,10.10203235]
[1744381225726,9.8831,1558.2,1558.0,10.10203235]
[1744381225932,0.00963235,1558.2,1558.0,11.38631235]
[1744381226120,4.12678156,1558.3,1558.1,4.49203]
[1744381226427,5.42047391,1558.3,1558.2,10.2859]
[1744381226622,1.28423,1558.1,1558.0,0.00963235]
[1744381226822,4.49203,1558.1,1558.0,0.00963235]
[1744381227022,9.50166235,1558.1,1558.0,0.00963235]
[1744381227229,23.63441156,1558.1,1558.0,2.35e-06]
[1744381227521,33.82311156,1558.1,1558.0,2.35e-06]
[1744381227727,28.82311156,1558.1,1558.0,2.35e-06]
[1744381227931,25.61531156,1558.1,1558.0,2.35e-06]
[1744381228528,30.61531156,1558.1,1558.0,2.35e-06]
[1744381228726,33.82311156,1558.1,1558.0,2.35e-06]
[1744381228921,30.61531156,1558.1,1558.0,2.35e-06]
[1744381229117,25.61531156,1558.1,1558.0,2.35e-06]
[1744381229323,33.82311156,1558.1,1558.0,2.35e-06]
[1744381230724,1.2848,1557.4,1557.3,3.2078]
[1744381230932,1.2848,1557.4,1557.3,3.19474921]
[1744381231132,13.93244921,1557.7,1557.3,8.19474921]
[1744381231430,1.2846,1557.7,1557.5,4.49252]
[1744381231725,1.2845,1557.8,1557.6,11.57542]
[1744381231927,1.2845,1557.8,1557.7,4.49228]
[1744381231928,0.00963235,1557.8,1557.7,4.49228]
[1744381232324,0.00963235,1557.8,1557.7,9.49228]
[1744381232525,0.00963235,1557.8,1557.7,19.78308]
[1744381233429,0.00963235,1557.8,1557.7,19.78316]
[1744381233629,0.00963235,1557.8,1557.7,26.75316]
[1744381234936,1.28424,1558.1,1558.0,1.28431]
[1744381235131,1.28424,1558.1,1558.0,3.2078]
[1744381235333,1.28431,1558.0,1557.9,9.7041]
[1744381236429,1.29390235,1558.1,1558.0,1.28431]
[1744381236736,1.29390235,1558.1,1558.0,12.9119]
[1744381236934,0.00963235,1558.1,1558.0,19.19621]
[1744381237130,1.29386235,1558.1,1558.0,19.19621]
[1744381237439,1.29386235,1558.1,1558.0,12.9119]
[1744381238124,1.3034947,1558.1,1558.0,9.7041]
[1744381239132,1.28439,1557.9,1557.8,8.277]
[1744381239332,1.28439,1557.9,1557.8,18.3379]
[1744381239734,1.28439,1557.9,1557.6,3.2078]
[1744381239735,1.28456,1557.7,1557.6,3.2078]
[1744381239927,1.28454,1557.8,1557.6,13.2687]
[1744381240128,0.00963235,1557.9,1557.6,13.2687]
[1744381240129,0.00963235,1558.1,1557.7,10.0609]
[1744381240441,1.3035547,1558.1,1557.8,4.49227]
[1744381240638,0.00963235,1558.1,1558.0,1.28431]
[1744381240842,0.00963235,1558.1,1558.0,11.47781]
[1744381241139,5.02122172,1558.3,1558.2,1.28414]
[1744381241336,5.02122172,1558.3,1558.2,11.93485493]
[1744381241536,6.58197254,1558.7,1558.6,1.28381]
[1744381241736,0.00963235,1558.7,1558.6,3.2078]
[1744381241929,1.28395,1558.5,1558.4,3.2078]
[1744381242338,1.29358235,1558.5,1558.4,3.2078]
[1744381242935,0.00963235,1558.6,1558.4,3.2078]
[1744381243139,10.1179647,1558.6,1558.4,3.2078]
[1744381243438,1.2839,1558.5,1558.4,3.2078]
[1744381243945,0.00963235,1558.5,1558.4,3.2078]
[1744381244343,1.29353235,1558.5,1558.4,3.2078]
[1744381244542,10.10833235,1558.6,1558.5,1.2839]
[1744381244543,0.00963235,1558.6,1558.5,1.2839]
[1744381244841,0.00963235,1558.6,1558.5,6.044]
[1744381245147,0.00963235,1558.6,1558.5,11.51772119]
[1744381245340,0.00963235,1558.6,1558.5,19.8038]
[1744381245652,0.00963235,1558.6,1558.5,14.8038]
[1744381245844,0.0192647,1558.6,1558.4,3.2078]
[1744381246040,1.28398,1558.4,1558.3,0.00963235]
[1744381246642,0.00963235,1558.6,1558.3,0.00963235]
[1744381246850,1.28398,1558.4,1558.3,10.13893235]
[1744381247144,1.28398,1558.4,1558.3,0.00963235]
[1744381247346,1.29361235,1558.4,1558.3,0.00963235]
[1744381247547,11.42131235,1558.4,1558.3,0.00963235]
[1744381247848,1.28446,1557.9,1557.8,3.2078]
[1744381248145,1.28438,1558.0,1557.8,13.3371]
[1744381248341,1.28438,1558.0,1557.9,10.1293]
[1744381249143,1.28414,1558.2,1557.9,10.1293]
[1744381249344,1.28429,1558.1,1557.9,10.1293]
[1744381249548,1.28431,1558.0,1557.9,10.1293]
[1744381249744,1.28439,1557.9,1557.8,3.21743235]
[1744381249945,1.28439,1557.9,1557.8,0.00963235]
[1744381250553,11.68429,1557.9,1557.8,0.00963235]
[1744381250845,21.87039,1557.9,1557.8,0.00963235]
[1744381251150,11.50099,1557.9,1557.8,0.00963235]
[1744381251849,21.90089,1557.9,1557.8,0.00963235]
[1744381252053,26.00498842,1557.9,1557.8,0.00963235]
[1744381252244,1.28472,1557.5,1557.4,3.2078]
[1744381252443,1.2848,1557.4,1557.3,9.5623]
[1744381252749,1.28502,1557.2,1557.0,28.4629819]
[1744381252951,1.28505,1557.1,1557.0,28.4629819]
[1744381253138,1.28502,1557.2,1557.0,28.4629819]
[1744381253450,1.28505,1557.1,1557.0,18.1893819]
[1744381253651,1.28513,1557.0,1556.9,0.00963235]
[1744381253850,1.28513,1557.0,1556.9,3.21743235]
[1744381254353,10.2211,1557.1,1556.9,3.21743235]
[1744381254649,1.28513,1557.0,1556.9,3.21743235]
[1744381255355,1.28513,1557.0,1556.9,0.00963235]
[1744381256048,11.52963,1557.0,1556.9,0.00963235]
[1744381256544,0.00963235,1557.3,1556.9,8.21743235]
[1744381256744,10.25413235,1557.3,1557.0,11.79302]
[1744381256947,0.00963235,1557.3,1557.1,1.28504]
[1744381257148,0.00963235,1557.3,1557.2,10.5079]
[1744381257546,1.29452235,1557.3,1557.2,10.5079]
[1744381257747,6.42968235,1557.3,1556.9,3.21743235]
[1744381257948,1.28513,1557.0,1556.9,0.00963235]
[1744381258145,1.28513,1557.0,1556.9,3.21743235]
[1744381258351,0.00963235,1557.3,1556.9,8.21743235]
[1744381258653,1.28513,1557.0,1556.9,3.21743235]
[1744381258850,1.28513,1557.0,1556.9,0.00963235]
[1744381259746,11.79003,1557.0,1556.9,0.00963235]
[1744381259941,16.79003,1557.0,1556.9,0.00963235]
[1744381260149,1.28546,1556.6,1556.5,3.31776607]
[1744381261153,1.28546,1556.6,1556.5,0.10996607]
[1744381261645,11.79036,1556.6,1556.5,0.10996607]
[1744381262448,1.28555,1556.5,1556.4,0.00963235]
[1744381262640,6.07055,1556.5,1556.4,0.00963235]
[1744381262847,16.61055,1556.5,1556.4,0.00963235]
[1744381263256,21.61055,1556.5,1556.4,2.35e-06]
[1744381263957,22.08612728,1556.5,1556.4,2.35e-06]
[1744381264150,1.28596,1556.0,1555.9,14.9815819]
[1744381264845,22.15616,1556.0,1555.9,14.9815819]
[1744381265047,1.28604,1555.9,1555.8,18.3846543]
[1744381265247,10.99554,1555.9,1555.8,18.3846543]
[1744381265648,1.28613,1555.8,1555.6,3.2078]
[1744381265848,10.9956,1555.9,1555.7,9.8531]
[1744381266050,10.9956,1555.9,1555.8,3.2078]
[1744381266953,9.7095,1555.9,1555.8,3.2078]
[1744381267152,5.27383235,1556.0,1555.8,3.2078]
[1744381267345,1.28612,1555.8,1555.7,9.8531]
[1744381267545,1.28641,1555.5,1555.3,3.2078]
[1744381267752,1.28646,1555.4,1555.3,3.2078]
[1744381268547,3.21554,1555.7,1555.3,8.2078]
[1744381268860,0.00963235,1556.0,1555.6,3.2078]
[1744381269156,0.00963235,1556.0,1555.8,3.2078]
[1744381269349,0.00963235,1556.0,1555.9,11.38344]
[1744381269758,0.00963235,1556.0,1555.9,16.38344]
[1744381270250,0.00963235,1556.0,1555.9,10.0974]
[1744381270451,0.00963235,1556.0,1555.9,11.38344]
[1744381270658,1.28604,1555.9,1555.8,3.2078]
[1744381270856,1.28609,1555.9,1555.7,10.0974]
[1744381271157,0.00963235,1556.0,1555.8,4.49389]
[1744381271346,0.00963235,1556.0,1555.9,11.38864]
[1744381271544,0.00963235,1556.0,1555.9,23.53954]
[1744381271745,0.00963235,1556.0,1555.9,28.53954]
[1744381272449,1e-08,1556.0,1555.9,28.53954]
[1744381272852,1.28596001,1556.0,1555.9,15.2985]
[1744381273953,1.28596001,1556.0,1555.9,10.1026]
[1744381274156,1.28596001,1556.0,1555.8,8.19393235]
[1744381274157,1.28604,1555.9,1555.8,0.00963235]
[1744381274356,19.73604,1555.9,1555.8,0.00963235]
[1744381274560,21.56954,1555.9,1555.8,0.00963235]
[1744381274860,26.56954,1555.9,1555.8,0.00963235]
[1744381275061,1.28654,1555.3,1555.2,3.2078]
[1744381275258,1.28648,1555.4,1555.2,13.5013]
[1744381275460,13.29011,1555.7,1555.2,13.5013]
[1744381275656,11.36063,1555.7,1555.4,4.49424]
[1744381275855,3.21597,1555.5,1555.1,10.1628]
[1744381276161,1.28632,1555.6,1555.2,10.2935]
[1744381276354,11.36079,1555.5,1555.2,10.2935]
[1744381276561,10.0744,1555.5,1555.2,10.2935]
[1744381276953,10.0744,1555.5,1555.1,3.2078]
[1744381276954,1.2866,1555.3,1555.1,3.2078]
[1744381277150,10.044,1555.2,1555.1,3.2078]
[1744381277755,9.9042,1555.4,1555.1,3.2078]
[1744381277955,6.40556,1555.4,1555.2,10.0282]
[1744381278155,5.1191,1555.4,1555.2,10.0282]
[1744381278356,6.4056,1555.4,1555.2,10.0282]
[1744381278860,6.40563,1555.4,1555.2,13.236]
[1744381279056,1.28665,1555.2,1555.0,3.2078]
[1744381279363,10.044,1555.1,1555.0,3.2078]
[1744381279561,10.044,1555.1,1555.0,13.236]
[1744381279865,0.00963235,1555.2,1555.0,14.52272]
[1744381280066,0.00963235,1555.2,1555.0,10.0282]
[1744381280268,0.00963235,1555.2,1555.1,1.2867]
[1744381280666,0.00963235,1555.2,1555.1,6.2867]
[1744381283053,1.28642,1555.5,1555.1,6.2867]
[1744381283054,1.28636,1555.6,1555.2,3.21649]
[1744381283258,1.28636,1555.6,1555.4,4.49421]
[1744381283565,1.28636,1555.6,1555.5,9.8476]
[1744381284269,1.29590235,1555.7,1555.6,1.28629]
[1744381284456,1.29590235,1555.7,1555.6,3.2078]
[1744381284767,1.28637,1555.5,1555.4,3.21743235]
[1744381285764,6.28637,1555.5,1555.4,3.21743235]
[1744381286163,16.53437,1555.5,1555.4,3.21743235]
[1744381286465,11.53437,1555.5,1555.4,3.21743235]
[1744381286971,11.53437,1555.5,1555.4,0.00963235]
[1744381287159,19.74217,1555.5,1555.4,1e-08]
[1744381287465,18.4558,1555.5,1554.8,3.2078]
[1744381287672,1.28687,1554.9,1554.8,3.2078]
[1744381288073,6.28687,1554.9,1554.8,3.2078]
[1744381288572,16.53487,1554.9,1554.8,3.2078]
[1744381288769,1.28714,1554.6,1554.3,3.2078]
[1744381288964,11.53522,1554.5,1554.3,3.2078]
[1744381289165,20.3968,1554.5,1554.1,3.2078]
[1744381289362,5.0646,1554.4,1554.1,3.2078]
[1744381289665,1.28745,1554.2,1554.1,3.2078]
[1744381289865,1.28766,1554.0,1553.9,3.2078]
[1744381290264,11.04377,1554.1,1553.9,3.2078]
[1744381290462,11.04379,1554.1,1553.9,3.2078]
[1744381290768,9.7562,1554.1,1553.9,3.2078]
[1744381291074,1.28761,1554.0,1553.9,3.2078]
[1744381291272,3.2078,1554.0,1553.6,24.84932126]
[1744381291463,9.7562,1553.9,1553.7,3.2078]
[1744381291962,11.04391,1553.9,1553.7,3.2078]
[1744381292158,9.7562,1553.9,1553.7,3.2078]
[1744381292574,3.2078,1554.3,1553.7,3.2078]
[1744381292872,1.28767,1554.0,1553.7,3.2078]
[1744381293169,9.9298,1554.1,1553.9,3.2078]
[1744381293471,9.9298,1554.1,1553.9,4.49549]
[1744381293664,1.28746,1554.2,1553.9,3.2078]
[1744381293859,1.28757,1554.1,1553.9,3.2078]
[1744381294067,3.21863,1554.2,1553.6,29.62652126]
[1744381294274,1.28803,1553.5,1553.4,3.2078]
[1744381294567,10.16225,1553.9,1553.4,3.2078]
[1744381294772,0.00963235,1553.6,1553.5,3.2078]
[1744381295566,1.29758235,1553.6,1553.5,3.2078]
[1744381296166,0.00963235,1553.6,1553.5,3.2078]
[1744381296370,1.29758235,1553.6,1553.5,3.2078]
[1744381297672,1.28811,1553.4,1553.3,3.2078]
[1744381298566,11.18107,1553.5,1553.3,3.2078]
[1744381298773,0.00963235,1553.6,1553.4,9.8117]
[1744381298969,1.29758235,1553.6,1553.5,3.2078]
[1744381299169,1.28564088,1553.6,1553.5,3.2078]
[1744381299470,1.28787,1553.7,1553.5,4.49583]
[1744381299676,1.28786,1553.7,1553.6,9.8117]
[1744381300666,1.28795,1553.6,1553.5,3.21743235]
[1744381300863,10.3391,1553.7,1553.5,13.02913235]
[1744381301075,10.3391,1553.7,1553.5,14.31708235]
[1744381301076,1.28795,1553.6,1553.5,14.31708235]
[1744381301277,10.3391,1553.7,1553.5,13.02913235]
[1744381301479,0.00963235,1553.8,1553.7,1.28786]
[1744381301664,0.00963235,1553.8,1553.7,4.49566]
[1744381301869,1e-08,1553.8,1553.7,4.49566]
[1744381302068,1e-08,1553.8,1553.7,14.93446]
[1744381302372,1.28778001,1553.8,1553.7,13.6466]
[1744381303071,1e-08,1553.8,1553.7,13.6466]
[1744381303378,1.28778001,1553.8,1553.7,13.6466]
[1744381303576,1e-08,1553.8,1553.7,13.6466]
[1744381303970,1.28778001,1553.8,1553.7,13.6466]
[1744381304478,1.28795,1553.6,1553.5,3.21743235]
[1744381304973,1e-08,1553.8,1553.7,1.28786]
[1744381305175,1e-08,1553.8,1553.7,4.49566]
[1744381305376,1e-08,1553.8,1553.7,3.2078]
[1744381305571,1e-08,1553.8,1553.7,9.49566]
[1744381305977,1.28778001,1553.8,1553.7,3.2078]
[1744381307477,1.28778001,1553.8,1553.7,4.49566]
[1744381307672,1.28778001,1553.8,1553.7,3.2078]
[1744381308174,1.28778001,1553.8,1553.7,4.49566]
[1744381308374,1.28778001,1553.8,1553.7,3.2078]
[1744381308573,1.28778001,1553.8,1553.7,4.49566]
[1744381309075,1e-08,1553.8,1553.7,16.44266]
[1744381309284,1.28778001,1553.8,1553.7,13.2497]
[1744381309481,1.28778001,1553.8,1553.7,8.0598]
[1744381309975,1.28778001,1553.8,1553.7,3.2078]
[1744381310576,1e-08,1553.8,1553.7,4.49566]
[1744381310978,1.28778001,1553.8,1553.7,3.2078]
[1744381311375,1.28786,1553.7,1553.6,9.6086]
[1744381311770,1.28786,1553.7,1553.5,3.21743235]
[1744381311771,1.28795,1553.6,1553.5,0.00963235]
[1744381312173,1.28795,1553.6,1553.5,3.21743235]
[1744381312673,3.21963001,1553.8,1553.5,12.92953235]
[1744381312876,1e-08,1553.8,1553.7,4.49566]
[1744381313068,1e-08,1553.8,1553.7,19.12206]
[1744381313282,1e-08,1553.8,1553.7,24.12206]
[1744381313881,3.21741,1554.8,1554.5,1.28718]
[1744381314088,5.245,1555.0,1554.6,1.28703]
[1744381314279,3.21737,1554.9,1554.3,3.2078]
[1744381314477,3.21759,1554.7,1554.3,4.49515]
[1744381314780,1.2872,1554.5,1554.4,1.28728]
[1744381315283,10.5228,1554.6,1554.3,3.21743235]
[1744381315284,1.28728,1554.4,1554.3,3.21743235]
[1744381315779,1.28724,1554.5,1554.3,3.21743235]
[1744381315983,1.28728,1554.4,1554.3,3.21743235]
[1744381316279,0.00963235,1554.7,1554.3,3.21743235]
[1744381316587,0.00963235,1554.7,1554.6,3.2078]
[1744381316777,1.29666235,1554.7,1554.6,3.2078]
[1744381317085,1.28718,1554.6,1554.5,3.2078]
[1744381317379,1.28712,1554.6,1554.5,3.2078]
[1744381317580,1.2872,1554.5,1554.4,10.1698]
[1744381317782,1.28728,1554.4,1554.3,0.00963235]
[1744381318587,6.28728,1554.4,1554.3,1e-08]
[1744381319786,23.68028,1554.4,1554.3,1e-08]
[1744381320179,16.74728,1554.4,1554.3,1e-08]
[1744381320383,19.95508,1554.4,1554.3,1e-08]
[1744381320683,16.74728,1554.4,1554.3,1e-08]
[1744381321084,11.74728,1554.4,1554.3,1e-08]
[1744381321484,16.74728,1554.4,1554.3,1e-08]
[1744381322088,11.74728,1554.4,1554.3,1e-08]
[1744381323080,5.0221,1554.6,1554.3,1e-08]
[1744381323280,1.29669235,1554.7,1554.4,4.49505]
[1744381323478,1.29666235,1554.7,1554.6,3.2078]
[1744381324392,3.22722235,1554.7,1554.4,3.2078]
[1744381324686,1.2872,1554.5,1554.4,3.2078]
[1744381325087,1.2872,1554.5,1554.3,1e-08]
[1744381325088,1.28728,1554.4,1554.3,1e-08]
[1744381325683,11.10648,1554.4,1554.3,1e-08]
[1744381326887,16.10648,1554.4,1554.3,1e-08]
[1744381327077,11.10648,1554.4,1554.3,1e-08]
[1744381327283,25.24628,1554.4,1554.3,1e-08]
[1744381328691,22.03848,1554.4,1554.3,1e-08]
[1744381329185,25.24628,1554.4,1554.3,1e-08]
[1744381329583,22.03848,1554.4,1554.3,1e-08]
[1744381329784,25.24628,1554.4,1554.3,1e-08]
[1744381329990,17.03848,1554.4,1554.3,1e-08]
[1744381330287,22.03848,1554.4,1554.3,1e-08]
[1744381331191,17.03848,1554.4,1554.3,1e-08]
[1744381331594,25.24628,1554.4,1554.3,1e-08]
[1744381331790,25.24628,1554.4,1553.7,13.99814]
[1744381331992,1.28775,1553.9,1553.7,12.7103]
[1744381332895,1.28768,1554.0,1553.7,12.7103]
[1744381333187,6.42715,1553.9,1553.6,0.00963235]
[1744381333391,1.28828,1553.2,1553.1,3.2078]
[1744381333584,1.28836,1553.1,1553.0,9.5025]
[1744381333784,3.22039,1553.4,1553.0,9.5025]
[1744381333985,3.21968,1553.7,1553.3,3.2078]
[1744381334185,13.52467,1553.6,1553.0,12.7103]
[1744381334389,3.22012,1553.5,1553.1,15.0114334]
[1744381334584,10.1274,1553.4,1553.1,15.0114334]
[1744381334787,1.28825,1553.3,1553.2,10.3367]
[1744381334982,1.28828,1553.2,1553.1,15.0114334]
[1744381335188,11.41568,1553.2,1553.1,15.0114334]
[1744381335593,11.41568,1553.2,1553.1,13.6615134]
[1744381335792,11.41568,1553.2,1553.1,12.1562234]
[1744381337291,1.28824,1553.3,1553.1,22.4929234]
[1744381337491,1.28828,1553.2,1553.1,12.1562234]
[1744381338397,6.28828,1553.2,1553.1,9.4649934]
[1744381338593,9.49608,1553.2,1553.1,5.88427387]
[1744381338795,8.2078,1553.2,1553.0,42.60065436]
[1744381339093,8.2078,1553.2,1552.4,0.10996607]
[1744381339094,16.5629,1553.1,1552.4,0.10996607]
[1744381339298,1.28911,1552.2,1552.1,10.07890754]
[1744381339497,3.2078,1552.5,1552.1,20.07890754]
[1744381339690,14.8111,1552.4,1552.1,13.28670754]
[1744381339891,16.10007,1552.4,1552.1,13.28670754]
[1744381340089,14.8111,1552.4,1552.3,3.2078]
[1744381340391,0.00966401,1552.5,1552.3,3.2078]
[1744381340698,0.00966401,1552.5,1552.4,10.2905]
[1744381341100,0.00966401,1552.5,1552.4,15.2905]
[1744381341286,0.00966401,1552.5,1552.4,20.2905]
[1744381341487,3.2078,1553.4,1552.4,15.2905]
[1744381341687,8.1931,1553.2,1552.6,3.2078]
[1744381341895,15.1301,1553.2,1552.6,3.2078]
[1744381342107,1.28862,1552.8,1552.7,10.1004]
[1744381342395,15.1301,1553.2,1552.7,10.1004]
[1744381342599,1.28861,1552.8,1552.7,10.1004]
[1744381343098,1.28869,1552.7,1552.6,0.00966401]
[1744381343298,1.28869,1552.7,1552.6,10.00966401]
[1744381343498,6.27396,1552.8,1552.6,10.00966401]
[1744381343696,6.27396,1552.8,1552.7,9.8395]
[1744381343898,1.28869,1552.7,1552.6,0.00966401]
[1744381344105,8.73793198,1552.7,1552.6,0.00966401]
[1744381344302,7.44924198,1552.7,1552.6,0.00966401]
[1744381344597,7.39296877,1552.9,1552.6,8.21746401]
[1744381344796,7.39296877,1552.9,1552.8,4.49641]
[1744381345002,10.99831617,1553.0,1552.9,1.28853]
[1744381345301,10.99831617,1553.0,1552.9,11.938]
[1744381345607,10.99831617,1553.0,1552.9,5.0]
[1744381345901,10.99831617,1553.0,1552.8,3.2078]
[1744381346498,12.28679617,1553.0,1552.8,3.2078]
[1744381346698,10.99831617,1553.0,1552.8,3.2078]
[1744381346999,12.28676617,1553.0,1552.8,3.2078]
[1744381347301,10.99831617,1553.0,1552.8,3.2078]
[1744381347496,1.28853,1552.9,1552.7,10.0464]
[1744381347695,1.28861,1552.8,1552.7,10.0464]
[1744381347901,1.28869,1552.7,1552.6,3.21746401]
[1744381348098,1.28853,1552.9,1552.6,3.21746401]
[1744381348298,14.8825,1553.0,1552.6,3.21746401]
[1744381348500,1.28868,1552.8,1552.6,3.21746401]
[1744381348702,1.28869,1552.7,1552.6,3.21746401]
[1744381348905,1.28869,1552.7,1552.6,0.00966401]